[Event "*** Titled Tuesday 3|2 Blitz"]
[Site "Chess.com"]
[Date "2016.05.03"]
[Round "4"]
[White "E-Shaposhnikov"]
[Black "igorkovalenko"]
[Result "0-1"]
[WhiteElo "2465"]
[BlackElo "2587"]
[TimeControl "180+2"]
[EndTime "11:51:58 PDT"]
[Termination "igorkovalenko won by resignation"]

1. Nf3 {[%clk 0:02:59.7]} 1... c5 {[%clk 0:02:56.3]} 2. c4 {[%clk 0:03:00.3]}
2... g6 {[%clk 0:02:57]} 3. d4 {[%clk 0:02:56.7]} 3... Bg7 {[%clk 0:02:58.4]} 4.
e4 {[%clk 0:02:56.5]} 4... cxd4 {[%clk 0:02:55.9]} 5. Nxd4 {[%clk 0:02:57.2]}
5... Nc6 {[%clk 0:02:57.2]} 6. Be3 {[%clk 0:02:57.9]} 6... Qb6 {[%clk
0:02:42.1]} 7. Nb3 {[%clk 0:02:48.8]} 7... Qc7 {[%clk 0:02:43]} 8. Nc3 {[%clk
0:02:49.6]} 8... Bxc3+ {[%clk 0:02:41.4]} 9. bxc3 {[%clk 0:02:51.5]} 9... Nf6
{[%clk 0:02:42.9]} 10. f3 {[%clk 0:02:41.8]} 10... d6 {[%clk 0:02:43.9]} 11. c5
{[%clk 0:02:28.5]} 11... dxc5 {[%clk 0:02:44.5]} 12. Nxc5 {[%clk 0:02:24.7]}
12... O-O {[%clk 0:02:44.6]} 13. Bb5 {[%clk 0:02:16.9]} 13... Rd8 {[%clk
0:02:44.9]} 14. Qa4 {[%clk 0:02:16.2]} 14... Ne5 {[%clk 0:02:34.1]} 15. Bd4
{[%clk 0:02:01.6]} 15... a6 {[%clk 0:02:18.2]} 16. Be2 {[%clk 0:01:58.1]} 16...
b6 {[%clk 0:02:14.8]} 17. Nb3 {[%clk 0:01:51.6]} 17... Nc6 {[%clk 0:02:08.5]}
18. O-O {[%clk 0:01:47]} 18... Be6 {[%clk 0:02:09.5]} 19. Rfd1 {[%clk
0:01:40.6]} 19... b5 {[%clk 0:01:50]} 20. Qa3 {[%clk 0:01:38.3]} 20... Nxd4
{[%clk 0:01:51.2]} 21. cxd4 {[%clk 0:01:36.3]} 21... Qc3 {[%clk 0:01:52.2]} 22.
Qc1 {[%clk 0:01:35.6]} 22... Qxc1 {[%clk 0:01:42.3]} 23. Raxc1 {[%clk
0:01:35.6]} 23... Bxb3 {[%clk 0:01:43.4]} 24. axb3 {[%clk 0:01:37.5]} 24... Rac8
{[%clk 0:01:44.3]} 25. d5 {[%clk 0:01:31.6]} 25... Nd7 {[%clk 0:01:39.2]} 26.
Rc6 {[%clk 0:01:25.2]} 26... Nb8 {[%clk 0:01:38.4]} 27. Rb6 {[%clk 0:01:21.3]}
27... Rc3 {[%clk 0:01:39.1]} 28. Rd3 {[%clk 0:01:21.9]} 28... Rc2 {[%clk
0:01:36.3]} 29. Kf1 {[%clk 0:01:22.5]} 29... Kf8 {[%clk 0:01:34]} 30. h4 {[%clk
0:01:19.9]} 30... Rcc8 {[%clk 0:01:32.9]} 31. g3 {[%clk 0:01:06.3]} 31... Rd6
{[%clk 0:01:34.1]} 32. Rb7 {[%clk 0:01:04.3]} 32... Nd7 {[%clk 0:01:27]} 33. b4
{[%clk 0:00:55.1]} 33... f5 {[%clk 0:01:23]} 34. Ra7 {[%clk 0:00:40.4]} 34...
fxe4 {[%clk 0:01:20]} 35. fxe4 {[%clk 0:00:42.3]} 35... Rc1+ {[%clk 0:01:20.4]}
36. Rd1 {[%clk 0:00:38.2]} 36... Rc3 {[%clk 0:01:15.3]} 37. Rd3 {[%clk
0:00:30.4]} 37... Rc1+ {[%clk 0:01:16.6]} 38. Rd1 {[%clk 0:00:31.1]} 38... Rc2
{[%clk 0:01:18.2]} 39. Ra1 {[%clk 0:00:28.1]} 39... Rb2 {[%clk 0:01:14.4]} 40.
R1xa6 {[%clk 0:00:27.2]} 40... Rxa6 {[%clk 0:01:14.5]} 41. Rxa6 {[%clk
0:00:29.1]} 41... Rxb4 {[%clk 0:01:16]} 42. Ra8+ {[%clk 0:00:23.7]} 42... Kf7
{[%clk 0:01:17]} 43. Bg4 {[%clk 0:00:24.2]} 43... Nc5 {[%clk 0:01:10.2]} 44. Rc8
{[%clk 0:00:19.2]} 44... Nxe4 {[%clk 0:01:10.7]} 45. Be6+ {[%clk 0:00:19.6]}
45... Kf6 {[%clk 0:01:12.2]} 46. g4 {[%clk 0:00:17.7]} 46... h5 {[%clk
0:00:44.1]} 47. g5+ {[%clk 0:00:15.7]} 47... Ke5 {[%clk 0:00:45.5]} 48. Rc7
{[%clk 0:00:17]} 48... Rb1+ {[%clk 0:00:22]} 49. Ke2 {[%clk 0:00:16.4]} 49...
Rb2+ {[%clk 0:00:23.5]} 50. Ke3 {[%clk 0:00:14.1]} 50... Rb3+ {[%clk 0:00:24.3]}
51. Ke2 {[%clk 0:00:15.3]} 51... Nc3+ {[%clk 0:00:21.6]} 52. Kd2 {[%clk
0:00:14.1]} 52... Nxd5 {[%clk 0:00:22.4]} 53. Bxd5 {[%clk 0:00:14.1]} 53... Kxd5
{[%clk 0:00:24.3]} 54. Rxe7 {[%clk 0:00:14.9]} 54... Ra3 {[%clk 0:00:21.1]} 55.
Rb7 {[%clk 0:00:15]} 55... Kc5 {[%clk 0:00:21.4]} 56. Rc7+ {[%clk 0:00:14.6]}
56... Kd5 {[%clk 0:00:22.8]} 57. Rb7 {[%clk 0:00:15.7]} 57... Kc4 {[%clk
0:00:18.5]} 58. Rb6 {[%clk 0:00:12.6]} 58... Rh3 {[%clk 0:00:16.4]} 59. Rxg6
{[%clk 0:00:13.1]} 59... Rxh4 {[%clk 0:00:18]} 60. Rh6 {[%clk 0:00:11.3]} 60...
b4 {[%clk 0:00:18.7]} 61. g6 {[%clk 0:00:11.6]} 61... Rh2+ {[%clk 0:00:19.9]}
62. Ke3 {[%clk 0:00:10.6]} 62... b3 {[%clk 0:00:21.1]} 63. g7 {[%clk 0:00:08.6]}
63... Rg2 {[%clk 0:00:22.1]} 64. Rd6 {[%clk 0:00:06.5]} 64... Rxg7 {[%clk
0:00:20.9]} 0-1

[Event "*** Titled Tuesday 3|2 Blitz"]
[Site "Chess.com"]
[Date "2016.05.03"]
[Round "4"]
[White "Stameny"]
[Black "cabalista"]
[Result "1/2-1/2"]
[WhiteElo "2373"]
[BlackElo "2354"]
[TimeControl "180+2"]
[EndTime "11:51:58 PDT"]
[Termination "Game drawn by agreement"]

1. d4 {[%clk 0:03:01.9]} 1... Nf6 {[%clk 0:02:58.6]} 2. Nf3 {[%clk 0:02:59.7]}
2... g6 {[%clk 0:02:58.1]} 3. Nc3 {[%clk 0:02:57.6]} 3... Bg7 {[%clk 0:02:56.2]}
4. e4 {[%clk 0:02:58.3]} 4... d6 {[%clk 0:02:56.7]} 5. Be3 {[%clk 0:02:53.4]}
5... a6 {[%clk 0:02:57.1]} 6. a4 {[%clk 0:02:38.6]} 6... O-O {[%clk 0:02:56.9]}
7. h3 {[%clk 0:02:37.6]} 7... Nc6 {[%clk 0:02:54.8]} 8. e5 {[%clk 0:02:27.7]}
8... Nd7 {[%clk 0:02:48.7]} 9. exd6 {[%clk 0:02:19.6]} 9... cxd6 {[%clk
0:02:37.1]} 10. Be2 {[%clk 0:02:19]} 10... Nf6 {[%clk 0:02:35.6]} 11. O-O {[%clk
0:02:19.4]} 11... Nb4 {[%clk 0:02:34.9]} 12. Re1 {[%clk 0:02:15.5]} 12... Bf5
{[%clk 0:02:33.3]} 13. Rc1 {[%clk 0:02:12.7]} 13... Rc8 {[%clk 0:02:32.8]} 14.
Qd2 {[%clk 0:02:03.5]} 14... a5 {[%clk 0:02:21.6]} 15. d5 {[%clk 0:01:55.7]}
15... Rxc3 {[%clk 0:02:16.8]} 16. bxc3 {[%clk 0:01:53.9]} 16... Ne4 {[%clk
0:02:16.4]} 17. Qd1 {[%clk 0:01:35.3]} 17... Nxc3 {[%clk 0:02:15.5]} 18. Qd2
{[%clk 0:01:36.2]} 18... Ne4 {[%clk 0:01:50.8]} 19. Qd1 {[%clk 0:01:36]} 19...
Na2 {[%clk 0:01:41.7]} 20. Ra1 {[%clk 0:01:30.4]} 20... Nac3 {[%clk 0:01:32.7]}
21. Qc1 {[%clk 0:01:31.5]} 21... Nxe2+ {[%clk 0:01:27.1]} 22. Rxe2 {[%clk
0:01:32.8]} 22... Bxa1 {[%clk 0:01:25.4]} 23. Qxa1 {[%clk 0:01:33.7]} 23... Nf6
{[%clk 0:01:04.4]} 24. Nd4 {[%clk 0:00:41.1]} 24... Bd7 {[%clk 0:01:03.1]} 25.
c4 {[%clk 0:00:39.4]} 25... Re8 {[%clk 0:00:57.3]} 26. Bg5 {[%clk 0:00:39.6]}
26... Qc7 {[%clk 0:00:40]} 27. Qc3 {[%clk 0:00:16.5]} 27... Nxd5 {[%clk
0:00:35.1]} 28. Qb3 {[%clk 0:00:13.7]} 28... Nf6 {[%clk 0:00:26.3]} 29. Nb5
{[%clk 0:00:11.3]} 29... Qc5 {[%clk 0:00:22.1]} 30. Bxf6 {[%clk 0:00:11.3]}
30... exf6 {[%clk 0:00:22.6]} 31. Rd2 {[%clk 0:00:12.7]} 31... Bxb5 {[%clk
0:00:22.5]} 32. cxb5 {[%clk 0:00:10.4]} 32... Re1+ {[%clk 0:00:18.8]} 33. Kh2
{[%clk 0:00:10.7]} 33... Qe5+ {[%clk 0:00:18.9]} 34. Qg3 {[%clk 0:00:11.1]}
34... Re4 {[%clk 0:00:16.4]} 35. Rxd6 {[%clk 0:00:11.1]} 35... Rxa4 {[%clk
0:00:16.3]} 36. Rb6 {[%clk 0:00:08.6]} 36... Rb4 {[%clk 0:00:14.9]} 37. Qxe5
{[%clk 0:00:09]} 37... fxe5 {[%clk 0:00:15.6]} 38. Rxb7 {[%clk 0:00:10.8]} 38...
a4 {[%clk 0:00:16.7]} 39. b6 {[%clk 0:00:11.7]} 39... Kg7 {[%clk 0:00:17]} 40.
g4 {[%clk 0:00:12.6]} 40... a3 {[%clk 0:00:17.5]} 41. Ra7 {[%clk 0:00:10.5]}
41... Rxb6 {[%clk 0:00:15.6]} 42. Rxa3 {[%clk 0:00:11.6]} 42... Rb4 {[%clk
0:00:15.5]} 43. Ra6 {[%clk 0:00:12.1]} 43... f6 {[%clk 0:00:15.5]} 44. Kg2
{[%clk 0:00:13]} 44... Kh6 {[%clk 0:00:15.9]} 45. Rxf6 {[%clk 0:00:13.2]} 45...
Kg5 {[%clk 0:00:16.4]} 46. Re6 {[%clk 0:00:14.4]} 46... Re4 {[%clk 0:00:15.3]}
47. Kg3 {[%clk 0:00:15.1]} 47... h5 {[%clk 0:00:15.2]} 48. h4+ {[%clk
0:00:15.6]} 48... Kh6 {[%clk 0:00:15.7]} 49. g5+ {[%clk 0:00:16.5]} 49... Kg7
{[%clk 0:00:12.9]} 50. f3 {[%clk 0:00:16.5]} 50... Re1 {[%clk 0:00:09.4]} 51.
Kf2 {[%clk 0:00:17.3]} 51... Rh1 {[%clk 0:00:09.8]} 52. Kg3 {[%clk 0:00:18.2]}
52... Re1 {[%clk 0:00:09.8]} 53. Kg2 {[%clk 0:00:17.4]} 53... Re2+ {[%clk
0:00:10.1]} 54. Kg3 {[%clk 0:00:16.9]} 54... Re1 {[%clk 0:00:10.7]} 55. Kf2
{[%clk 0:00:17.6]} 55... Rh1 {[%clk 0:00:11.2]} 56. Kg3 {[%clk 0:00:15.3]} 56...
Re1 {[%clk 0:00:11.4]} 57. Re7+ {[%clk 0:00:16.3]} 57... Kf8 {[%clk 0:00:11.7]}
58. Re6 {[%clk 0:00:17.6]} 58... Kf7 {[%clk 0:00:11.4]} 59. Rf6+ {[%clk
0:00:18.8]} 59... Kg7 {[%clk 0:00:11.2]} 60. Kf2 {[%clk 0:00:20.5]} 60... Rh1
{[%clk 0:00:11.3]} 61. Kg3 {[%clk 0:00:21.4]} 61... Re1 {[%clk 0:00:11.8]} 62.
Re6 {[%clk 0:00:21.3]} 62... Kf7 {[%clk 0:00:10.5]} 1/2-1/2

[Event "*** Titled Tuesday 3|2 Blitz"]
[Site "Chess.com"]
[Date "2016.05.03"]
[Round "4"]
[White "Sophiste2"]
[Black "Gevorg_Harutjunyan"]
[Result "0-1"]
[WhiteElo "2774"]
[BlackElo "2610"]
[TimeControl "180+2"]
[EndTime "11:52:02 PDT"]
[Termination "Gevorg_Harutjunyan won by resignation"]

1. Nf3 {[%clk 0:03:01.9]} 1... Nf6 {[%clk 0:03:00.6]} 2. g3 {[%clk 0:03:01.6]}
2... g6 {[%clk 0:03:02.1]} 3. Bg2 {[%clk 0:03:02]} 3... Bg7 {[%clk 0:03:04]} 4.
c4 {[%clk 0:03:03.6]} 4... O-O {[%clk 0:03:05.1]} 5. d4 {[%clk 0:03:04.6]} 5...
d6 {[%clk 0:03:06.2]} 6. O-O {[%clk 0:03:05.3]} 6... c6 {[%clk 0:03:06.5]} 7.
Nc3 {[%clk 0:03:06.3]} 7... Qa5 {[%clk 0:03:06.8]} 8. e4 {[%clk 0:03:07.5]} 8...
e5 {[%clk 0:03:07]} 9. d5 {[%clk 0:03:06.6]} 9... cxd5 {[%clk 0:03:06.8]} 10.
cxd5 {[%clk 0:03:07.6]} 10... Na6 {[%clk 0:03:08.3]} 11. a3 {[%clk 0:03:02.9]}
11... Bd7 {[%clk 0:03:06.7]} 12. h3 {[%clk 0:02:56.2]} 12... Rfc8 {[%clk
0:03:04.8]} 13. Be3 {[%clk 0:02:56.3]} 13... Rxc3 {[%clk 0:02:59.4]} 14. bxc3
{[%clk 0:02:55.7]} 14... Nxe4 {[%clk 0:02:59.5]} 15. Qb1 {[%clk 0:02:53]} 15...
Nac5 {[%clk 0:02:50.2]} 16. c4 {[%clk 0:02:46.8]} 16... f5 {[%clk 0:02:47.9]}
17. Qb4 {[%clk 0:02:42.8]} 17... Qc7 {[%clk 0:02:45.9]} 18. Rab1 {[%clk
0:02:42.6]} 18... b6 {[%clk 0:02:44.7]} 19. Rfd1 {[%clk 0:02:32.2]} 19... Rf8
{[%clk 0:02:44]} 20. Rb2 {[%clk 0:02:06.4]} 20... f4 {[%clk 0:02:38.2]} 21. gxf4
{[%clk 0:02:06]} 21... exf4 {[%clk 0:02:38.3]} 22. Bd4 {[%clk 0:02:06.6]} 22...
Qc8 {[%clk 0:02:35.3]} 23. Kh2 {[%clk 0:02:06.5]} 23... Rf5 {[%clk 0:02:25.1]}
24. Qe1 {[%clk 0:01:58]} 24... Rh5 {[%clk 0:02:22.2]} 25. Qf1 {[%clk 0:01:59.1]}
25... g5 {[%clk 0:02:21.8]} 26. Bxg7 {[%clk 0:01:56.5]} 26... Kxg7 {[%clk
0:02:21.6]} 27. Kg1 {[%clk 0:01:55.7]} 27... Bxh3 {[%clk 0:02:15.6]} 28. Nd4
{[%clk 0:01:53.2]} 28... g4 {[%clk 0:02:04.7]} 29. f3 {[%clk 0:01:34.5]} 29...
Ng5 {[%clk 0:01:57.3]} 30. Qe2 {[%clk 0:01:33.4]} 30... Bxg2 {[%clk 0:01:54.4]}
31. Qe7+ {[%clk 0:01:28.3]} 31... Nf7 {[%clk 0:01:51]} 32. Rxg2 {[%clk
0:01:28.1]} 32... g3 {[%clk 0:01:47.9]} 33. Kf1 {[%clk 0:01:02.4]} 33... Rh1+
{[%clk 0:01:47.8]} 34. Ke2 {[%clk 0:01:02.3]} 34... Qh3 {[%clk 0:01:47.4]} 35.
Rxg3+ {[%clk 0:00:49.1]} 35... fxg3 {[%clk 0:01:46.2]} 36. Ne6+ {[%clk
0:00:49.1]} 36... Nxe6 {[%clk 0:01:45.3]} 37. dxe6 {[%clk 0:00:50.7]} 37... Rh2+
{[%clk 0:01:39.9]} 38. Ke3 {[%clk 0:00:45.5]} 38... Qh6+ {[%clk 0:01:38.7]} 39.
f4 {[%clk 0:00:44.5]} 39... Qf6 {[%clk 0:01:36.4]} 40. Qxf6+ {[%clk 0:00:35.1]}
40... Kxf6 {[%clk 0:01:38.3]} 41. exf7 {[%clk 0:00:36.8]} 41... Kxf7 {[%clk
0:01:38.6]} 42. Kf3 {[%clk 0:00:38]} 42... g2 {[%clk 0:01:37.4]} 43. Rg1 {[%clk
0:00:39.6]} 43... Kf6 {[%clk 0:01:37.4]} 44. a4 {[%clk 0:00:41.1]} 44... Kf5
{[%clk 0:01:37.5]} 45. Rd1 {[%clk 0:00:41.1]} 45... h5 {[%clk 0:01:27.8]} 46.
Kg3 {[%clk 0:00:39.5]} 46... g1=Q+ {[%clk 0:01:24.4]} 47. Rxg1 {[%clk
0:00:41.2]} 47... Ra2 {[%clk 0:01:24.1]} 48. Rh1 {[%clk 0:00:42.3]} 48... Ra3+
{[%clk 0:01:23.9]} 49. Kf2 {[%clk 0:00:43.9]} 49... Rxa4 {[%clk 0:01:24.1]} 50.
Ke3 {[%clk 0:00:42.8]} 50... Rxc4 {[%clk 0:01:21.7]} 51. Rxh5+ {[%clk 0:00:44]}
51... Ke6 {[%clk 0:01:23]} 52. Rh6+ {[%clk 0:00:43.7]} 52... Kd5 {[%clk
0:01:22.1]} 53. Rh5+ {[%clk 0:00:44.8]} 53... Kc6 {[%clk 0:01:22.4]} 54. f5
{[%clk 0:00:45.3]} 54... Rc1 {[%clk 0:01:20.7]} 55. Rh2 {[%clk 0:00:44.8]} 55...
Rf1 {[%clk 0:01:19.2]} 56. Ke4 {[%clk 0:00:43.1]} 56... a5 {[%clk 0:01:20.1]}
57. Rc2+ {[%clk 0:00:42.9]} 57... Kb5 {[%clk 0:01:18.8]} 58. Rb2+ {[%clk
0:00:44.1]} 58... Kc5 {[%clk 0:01:18.2]} 59. Rc2+ {[%clk 0:00:44.4]} 59... Kb5
{[%clk 0:01:15.2]} 60. Rb2+ {[%clk 0:00:45.6]} 60... Ka6 {[%clk 0:01:15.1]} 61.
Rd2 {[%clk 0:00:47.2]} 61... a4 {[%clk 0:01:14]} 62. Rxd6 {[%clk 0:00:46.5]}
62... Ka5 {[%clk 0:01:15.1]} 63. Rd3 {[%clk 0:00:43.3]} 63... b5 {[%clk
0:01:12.4]} 64. Rh3 {[%clk 0:00:40.2]} 64... Kb4 {[%clk 0:01:09.2]} 65. Rh4
{[%clk 0:00:31.1]} 65... a3 {[%clk 0:01:10.4]} 66. Kd3+ {[%clk 0:00:26.8]} 66...
Kb3 {[%clk 0:01:10.5]} 67. Rh3 {[%clk 0:00:28.5]} 67... a2 {[%clk 0:01:02.5]}
68. Ke2+ {[%clk 0:00:28.8]} 68... Kc4 {[%clk 0:01:00.5]} 69. Kxf1 {[%clk
0:00:30.1]} 69... a1=Q+ {[%clk 0:01:00.9]} 70. Kf2 {[%clk 0:00:31.1]} 70... Qf6
{[%clk 0:00:59.6]} 71. Rf3 {[%clk 0:00:27.7]} 71... b4 {[%clk 0:01:01]} 72. Rf4+
{[%clk 0:00:27.7]} 72... Kc3 {[%clk 0:01:00.9]} 73. Rf3+ {[%clk 0:00:25]} 73...
Kc2 {[%clk 0:01:01.9]} 74. Kg3 {[%clk 0:00:26.1]} 74... b3 {[%clk 0:01:00.9]}
75. Kg4 {[%clk 0:00:17.9]} 75... b2 {[%clk 0:01:01.5]} 76. Rf2+ {[%clk
0:00:19.3]} 76... Kb3 {[%clk 0:01:02.6]} 77. Rf3+ {[%clk 0:00:20.7]} 77... Ka2
{[%clk 0:01:04]} 78. Rf2 {[%clk 0:00:22]} 78... Ka1 {[%clk 0:01:05.5]} 0-1

[Event "*** Titled Tuesday 3|2 Blitz"]
[Site "Chess.com"]
[Date "2016.05.03"]
[Round "4"]
[White "alturas_pacificas"]
[Black "KyronGriffith"]
[Result "1-0"]
[WhiteElo "2183"]
[BlackElo "2318"]
[TimeControl "180+2"]
[EndTime "11:52:18 PDT"]
[Termination "alturas_pacificas won by resignation"]

1. d4 {[%clk 0:03:01.9]} 1... d5 {[%clk 0:03:00.6]} 2. Bf4 {[%clk 0:02:57.7]}
2... Nf6 {[%clk 0:03:00.3]} 3. e3 {[%clk 0:02:58.8]} 3... e6 {[%clk 0:03:01.7]}
4. Nd2 {[%clk 0:02:58]} 4... Bd6 {[%clk 0:03:02.8]} 5. Bg3 {[%clk 0:02:58.9]}
5... O-O {[%clk 0:02:57.2]} 6. Bd3 {[%clk 0:02:59.1]} 6... b6 {[%clk 0:02:57.8]}
7. Ngf3 {[%clk 0:03:00]} 7... c5 {[%clk 0:02:56.6]} 8. c3 {[%clk 0:03:00.7]}
8... Ba6 {[%clk 0:02:53.3]} 9. Bxa6 {[%clk 0:02:56.9]} 9... Nxa6 {[%clk
0:02:55.2]} 10. Qe2 {[%clk 0:02:57]} 10... Nb8 {[%clk 0:02:48.4]} 11. Ne5 {[%clk
0:02:54.3]} 11... Qc7 {[%clk 0:02:45.4]} 12. f4 {[%clk 0:02:54.4]} 12... Nfd7
{[%clk 0:02:36]} 13. O-O {[%clk 0:02:47.5]} 13... Nc6 {[%clk 0:02:30.6]} 14.
Rae1 {[%clk 0:02:40.6]} 14... a5 {[%clk 0:02:22.3]} 15. Qb5 {[%clk 0:02:30.6]}
15... Ncxe5 {[%clk 0:02:19.2]} 16. fxe5 {[%clk 0:02:31.7]} 16... Be7 {[%clk
0:02:17.3]} 17. Qd3 {[%clk 0:02:29.9]} 17... a4 {[%clk 0:02:11.2]} 18. a3 {[%clk
0:02:30.1]} 18... b5 {[%clk 0:02:07.7]} 19. e4 {[%clk 0:02:16.7]} 19... dxe4
{[%clk 0:01:57.1]} 20. Nxe4 {[%clk 0:02:15.6]} 20... cxd4 {[%clk 0:01:56.3]} 21.
cxd4 {[%clk 0:02:16.1]} 21... Qb6 {[%clk 0:01:49.4]} 22. Kh1 {[%clk 0:02:13.9]}
22... b4 {[%clk 0:01:45.4]} 23. h4 {[%clk 0:02:12.7]} 23... bxa3 {[%clk
0:01:44.2]} 24. bxa3 {[%clk 0:02:13.8]} 24... Qb3 {[%clk 0:01:43.5]} 25. Rf3
{[%clk 0:02:08.2]} 25... Qxd3 {[%clk 0:01:38.5]} 26. Rxd3 {[%clk 0:02:08.7]}
26... Nb6 {[%clk 0:01:34.9]} 27. h5 {[%clk 0:02:05.1]} 27... Rfd8 {[%clk
0:01:23.5]} 28. h6 {[%clk 0:02:02.5]} 28... gxh6 {[%clk 0:01:12.8]} 29. Rf1
{[%clk 0:01:58.1]} 29... Nc4 {[%clk 0:01:07.4]} 30. Rdf3 {[%clk 0:01:48.4]}
30... Rf8 {[%clk 0:01:08.2]} 31. Bf4 {[%clk 0:01:42.5]} 31... f5 {[%clk
0:00:40.5]} 32. exf6 {[%clk 0:01:40.5]} 32... Bxf6 {[%clk 0:00:39.1]} 33. Bxh6
{[%clk 0:01:39.5]} 33... Bg7 {[%clk 0:00:38]} 34. Bxg7 {[%clk 0:01:24.4]} 34...
Kxg7 {[%clk 0:00:39]} 35. Rg3+ {[%clk 0:01:25.9]} 35... Kh8 {[%clk 0:00:32.1]}
36. Rc1 {[%clk 0:01:25.7]} 36... Rac8 {[%clk 0:00:27.5]} 37. Nc5 {[%clk
0:01:27]} 37... Nd6 {[%clk 0:00:22.5]} 38. Re1 {[%clk 0:01:25.6]} 38... Nf5
{[%clk 0:00:23]} 39. Rg4 {[%clk 0:01:23.3]} 39... Nxd4 {[%clk 0:00:23.9]} 40.
Rxd4 {[%clk 0:01:22.9]} 40... Rxc5 {[%clk 0:00:24.9]} 41. Rxe6 {[%clk
0:01:24.5]} 41... Rf1+ {[%clk 0:00:22]} 42. Kh2 {[%clk 0:01:24.3]} 42... Rh5+
{[%clk 0:00:22.7]} 43. Kg3 {[%clk 0:01:24.3]} 43... Rg5+ {[%clk 0:00:24.3]} 44.
Rg4 {[%clk 0:01:18.6]} 44... Rxg4+ {[%clk 0:00:24.8]} 45. Kxg4 {[%clk
0:01:20.1]} 45... Ra1 {[%clk 0:00:17.6]} 46. Re3 {[%clk 0:01:19.8]} 46... Kg7
{[%clk 0:00:19.1]} 47. Kg5 {[%clk 0:01:18.8]} 47... Kf7 {[%clk 0:00:15.6]} 48.
Rc3 {[%clk 0:01:16.5]} 48... Ke6 {[%clk 0:00:16.2]} 49. g4 {[%clk 0:01:15.3]}
49... Ke5 {[%clk 0:00:16.7]} 50. Rh3 {[%clk 0:01:07.3]} 50... Ke6 {[%clk
0:00:14.7]} 51. Kh6 {[%clk 0:01:06.6]} 51... Rg1 {[%clk 0:00:13.9]} 52. g5
{[%clk 0:01:06.8]} 52... Kf5 {[%clk 0:00:13.8]} 53. Rf3+ {[%clk 0:01:02.3]}
53... Ke4 {[%clk 0:00:12]} 54. Rc3 {[%clk 0:01:00.8]} 54... Rh1+ {[%clk
0:00:12.8]} 55. Kg7 {[%clk 0:01:01.4]} 55... Kf4 {[%clk 0:00:14.1]} 56. Rc5
{[%clk 0:00:55.6]} 56... Rh5 {[%clk 0:00:12.1]} 57. Kf6 {[%clk 0:00:49.4]} 57...
Ke3 {[%clk 0:00:03]} 58. Rc4 {[%clk 0:00:47]} 58... Kd3 {[%clk 0:00:04.4]} 59.
Rxa4 {[%clk 0:00:47.9]} 59... Kc3 {[%clk 0:00:05.5]} 60. Rb4 {[%clk 0:00:47.1]}
60... Rh1 {[%clk 0:00:06]} 61. Rb7 {[%clk 0:00:46.3]} 61... Ra1 {[%clk
0:00:06.9]} 62. Rxh7 {[%clk 0:00:46.1]} 62... Kd4 {[%clk 0:00:06.6]} 63. Re7
{[%clk 0:00:46]} 63... Kd5 {[%clk 0:00:07.1]} 64. Re3 {[%clk 0:00:45.8]} 64...
Kd6 {[%clk 0:00:04.4]} 65. Rd3+ {[%clk 0:00:45.7]} 65... Kc5 {[%clk 0:00:04.5]}
66. g6 {[%clk 0:00:47]} 66... Rf1+ {[%clk 0:00:05.3]} 67. Kg7 {[%clk 0:00:48.1]}
67... Re1 {[%clk 0:00:04.5]} 68. Kg8 {[%clk 0:00:46.9]} 68... Rg1 {[%clk
0:00:04.5]} 69. g7 {[%clk 0:00:47.7]} 69... Kc6 {[%clk 0:00:06.4]} 70. a4 {[%clk
0:00:46.8]} 70... Kc5 {[%clk 0:00:07.1]} 71. a5 {[%clk 0:00:47.2]} 71... Kb5
{[%clk 0:00:08.3]} 72. Rd5+ {[%clk 0:00:47.1]} 72... Ka6 {[%clk 0:00:08.9]} 73.
Kf7 {[%clk 0:00:46.9]} 73... Rg2 {[%clk 0:00:07.7]} 74. g8=Q {[%clk 0:00:46.5]}
1-0